lending/lending_fUSD_20250210
["ID","MTS","AMOUNT","RATE_DAILY","PERIOD"]
[352676362,1739229036962,-1424.48,0.00010977,2]
[352676363,1739229036971,-817.53,0.00010977,2]
[352676364,1739229036980,-1012.01,0.00010977,2]
[352676365,1739229036990,-767.27,0.00010977,2]
[352676366,1739229036999,-500.0,0.00010977,2]
[352676367,1739229037008,-500.0,0.00010977,2]
[352676368,1739229037017,-500.0,0.00010977,2]
[352676369,1739229037026,-500.0,0.00010977,2]
[352676370,1739229037035,-500.0,0.00010977,2]
[352676371,1739229037044,-500.0,0.00010977,2]
[352676372,1739229037053,-500.0,0.00010977,2]
[352676373,1739229037063,-898.05,0.00010977,2]
[352676374,1739229037072,-500.0,0.00010977,2]
[352676375,1739229037081,-597.28410534,0.00010977,2]
[352676376,1739229037092,-1193.82,0.00010977,2]
[352676377,1739229037102,-500.0,0.00010977,2]
[352676378,1739229037113,-1168.64,0.00010977,2]
[352676379,1739229037122,-500.0,0.00010977,2]
[352676380,1739229037131,-500.0,0.00010977,2]
[352676381,1739229037140,-500.0,0.00010977,2]
[352676382,1739229037149,-2234.72,0.00010977,2]
[352676383,1739229037158,-500.0,0.00010977,2]
[352676384,1739229037168,-1138.13,0.00010977,2]
[352676385,1739229037177,-535.75,0.00010977,2]
[352676386,1739229037186,-957.35,0.00010977,2]
[352676387,1739229037195,-500.0,0.00010977,2]
[352676388,1739229037204,-1023.44,0.00010977,2]
[352676389,1739229037215,-500.0,0.00010977,2]
[352676390,1739229037224,-500.0,0.00010977,2]
[352676391,1739229037234,-1867.05,0.00010977,2]
[352676392,1739229037245,-500.0,0.00010977,2]
[352676393,1739229037254,-500.0,0.00010977,2]
[352676394,1739229037263,-500.0,0.00010977,2]
[352676395,1739229037272,-1069.59,0.00010977,2]
[352676396,1739229037281,-500.0,0.00010977,2]
[352676397,1739229037290,-500.0,0.00010977,2]
[352676398,1739229037299,-500.0,0.00010977,2]
[352676399,1739229037308,-500.0,0.00010977,2]
[352676400,1739229037318,-776.88,0.00010977,2]
[352676401,1739229037328,-500.0,0.00010977,2]
[352676402,1739229037337,-500.0,0.00010977,2]
[352676403,1739229037346,-500.0,0.00010977,2]
[352676404,1739229037356,-1516.02,0.00010977,2]
[352676405,1739229037365,-881.56,0.00010977,2]
[352676406,1739229037375,-2548.99,0.00010977,2]
[352676407,1739229037389,-620.6,0.00010977,2]
[352676408,1739229037399,-500.0,0.00010977,2]
[352676409,1739229037408,-151.0,0.00010977,2]
[352676410,1739229037417,-1330.71,0.00010977,2]
[352676411,1739229037428,-1365.07,0.00010977,2]
[352676412,1739229037437,-500.0,0.00010977,2]
[352676413,1739229037446,-500.0,0.00010977,2]
[352676414,1739229037456,-6631.29,0.00010977,2]
[352676415,1739229037465,-1437.57,0.00010977,2]
[352676416,1739229037475,-500.0,0.00010977,2]
[352676417,1739229037484,-565.52,0.00010977,2]
[352676418,1739229037495,-500.0,0.00010977,2]
[352676419,1739229037504,-1807.96,0.00010977,2]
[352676420,1739229037513,-500.0,0.00010977,2]
[352676421,1739229037522,-1119.57,0.00010977,2]
[352676422,1739229037531,-2379.1,0.00010977,2]
[352676428,1739229037718,-500.0,0.00010977,2]
[352676429,1739229037728,-500.0,0.00010977,2]
[352676430,1739229037738,-500.0,0.00010977,2]
[352676431,1739229037747,-500.0,0.00010977,2]
[352676432,1739229037756,-500.0,0.00010977,2]
[352676433,1739229037764,-1215.24,0.00010977,2]
[352676434,1739229037774,-500.0,0.00010977,2]
[352676435,1739229037783,-500.0,0.00010977,2]
[352676436,1739229037792,-502.84,0.00010977,2]
[352676437,1739229037802,-500.0,0.00010977,2]
[352676438,1739229037811,-1784.01,0.00010977,2]
[352676439,1739229037820,-500.0,0.00010977,2]
[352676440,1739229037829,-500.0,0.00010977,2]
[352676441,1739229037838,-1641.86,0.00010977,2]
[352676442,1739229037847,-2013.49,0.00010977,2]
[352676443,1739229037857,-500.0,0.00010977,2]
[352676444,1739229037866,-500.0,0.00010977,2]
[352676445,1739229037874,-500.0,0.00010977,2]
[352676446,1739229037883,-946.18,0.00010977,2]
[352676447,1739229037892,-500.0,0.00010977,2]
[352676448,1739229037902,-500.0,0.00010977,2]
[352676449,1739229037911,-1087.01,0.00010977,2]
[352676450,1739229037920,-2005.4,0.00010977,2]
[352676451,1739229037930,-500.0,0.00010977,2]
[352676452,1739229037939,-500.0,0.00010977,2]
[352676453,1739229037948,-3129.03,0.00010977,2]
[352676454,1739229037958,-782.98,0.00010977,2]
[352676455,1739229037968,-1520.62,0.00010977,2]
[352676456,1739229037983,-732.63,0.00010977,2]
[352676457,1739229037993,-2084.1,0.00010977,2]
[352676458,1739229038003,-500.0,0.00010977,2]
[352676459,1739229038012,-500.0,0.00010977,2]
[352676460,1739229038021,-500.0,0.00010977,2]
[352676461,1739229038030,-500.0,0.00010977,2]
[352676462,1739229038039,-1280.51,0.00010977,2]
[352676463,1739229038048,-500.0,0.00010977,2]
[352676464,1739229038058,-1662.62,0.00010977,2]
[352676465,1739229038067,-1540.8,0.00010977,2]
[352676466,1739229038076,-500.0,0.00010977,2]
[352676467,1739229038085,-1793.15,0.00010977,2]
[352676468,1739229038094,-2771.49,0.00010977,2]
[352676469,1739229038103,-770.82,0.00010977,2]
[352676470,1739229038112,-500.0,0.00010978,2]
[352676472,1739229038121,-500.0,0.00010978,2]
[352676474,1739229038131,-698.65,0.00010978,2]
[352676475,1739229038139,-500.0,0.00010978,2]
[352676477,1739229038148,-542.8,0.00010978,2]
[352676478,1739229038158,-500.0,0.00010978,2]
[352676479,1739229038167,-500.0,0.00010978,2]
[352676480,1739229038176,-500.0,0.00010978,2]
[352676481,1739229038185,-500.0,0.00010978,2]
[352676482,1739229038194,-500.0,0.00010978,2]
[352676483,1739229038203,-500.0,0.00010978,2]
[352676484,1739229038212,-500.0,0.00010978,2]
[352676485,1739229038221,-500.0,0.00010978,2]
[352676486,1739229038230,-500.0,0.00010978,2]
[352676487,1739229038241,-500.0,0.00010978,2]
[352676488,1739229038250,-473.2,0.00010978,2]
[352676489,1739229038260,-500.0,0.00010978,2]
[352676490,1739229038269,-266.63777074,0.00010978,2]
[352676491,1739229038279,-500.0,0.00010978,2]
[352676492,1739229038288,-500.0,0.00010978,2]
[352676493,1739229038297,-500.0,0.00010978,2]
[352676494,1739229038307,-228.46,0.00010978,2]
[352676495,1739229038316,-47.12309789,0.00010978,2]
[352676496,1739229039568,-500.0,0.00010976,2]
[352676497,1739229039578,-200.09273841,0.00010976,2]
[352676498,1739229039588,-331.50726159,0.00010976,2]
[352676499,1739229039600,-168.49273841,0.00010976,2]
[352676500,1739229039609,-500.0,0.00010976,2]
[352676502,1739229039618,-250.90101475,0.00010976,2]
[352676504,1739229039628,-484.00486857,0.00010976,2]
[352676506,1739229039637,-4917.22085827,0.00010978,3]
[352676508,1739229039647,-1233.42756601,0.00010978,3]
[352676510,1739229039658,-425.71650748,0.00010978,3]
[352676512,1739229039670,-507.28963034,0.00010978,3]
[352676520,1739229039729,-2714.0786,0.00010978,3]
[352676522,1739229039740,-48250.0,0.00010978,3]
[352676529,1739229039795,-973.17911874,0.00010978,3]
[352676532,1739229040016,-96600.0,0.00010978,3]
[352676533,1739229040027,-500.0,0.00010978,3]
[352676534,1739229040038,-254.98887991,0.00010978,3]
[352676535,1739229040132,-4000.0,0.00010978,3]
[352676536,1739229040143,-5375.7588598,0.00010978,3]
[352676537,1739229040154,-373.08920016,0.00010978,3]
[352676541,1739229042833,-2061.2382,8.973e-05,2]
[352676542,1739229042843,-500.0,0.00010958,2]
[352676543,1739229042852,-825.5,0.00010958,2]
[352676544,1739229042862,-1941.1,0.00010976,2]
[352676545,1739229042870,-500.0,0.00010976,2]
[352676546,1739229042879,-365.49427181,0.00010976,2]
[352676547,1739229042888,-1558.64,0.00010977,2]
[352676548,1739229042898,-1712696.08598711,0.00010978,3]
[352676573,1739229045834,-9218.77649588,0.000109,2]
[352676574,1739229045844,-500.0,0.00010958,2]
[352676575,1739229045854,-44.57800412,0.00010958,2]
[352676576,1739229045903,-788.79199588,0.00010958,2]
[352676577,1739229045912,-555.11019155,0.00010976,2]
[352676578,1739229045923,-413.30980845,0.00010976,2]
[352676579,1739229045932,-500.0,0.00010977,2]
[352676580,1739229045941,-500.0,0.00010977,2]
[352676581,1739229045950,-659958.1578985,0.00010978,3]
[352676582,1739229045974,-680.31065153,0.00010978,3]
[352676583,1739229045985,-769.686283,0.00010978,3]
[352676584,1739229046175,-965.79962,0.00010978,3]
[352676640,1739229288452,6737.3773,8.836e-05,2]
[352676647,1739229710001,1644.4037,8.836e-05,2]
[352676648,1739229935286,895.18,8.219e-05,2]
[352676650,1739229965988,314.21370346,0.0002,120]
[352676661,1739230115083,500.0,0.0002,120]
[352676673,1739230232075,-1627.52420779,8.851e-05,2]
[352676674,1739230232087,-872.47579221,8.851e-05,2]
[352676675,1739230232096,-150.0,8.882e-05,2]
[352676676,1739230232106,-487.94754857,8.973e-05,2]
[352676677,1739230232117,-315.0,8.973e-05,2]
[352676678,1739230232143,-427.51085143,8.973e-05,2]
[352676679,1739230232152,-150.0,9.05e-05,2]
[352676680,1739230232162,-1059.0,9.096e-05,2]
[352676681,1739230232171,-3211.21541089,9.419e-05,2]
[352676682,1739230232180,-1059.0,9.575e-05,2]
[352676683,1739230232189,-300.0,9.623e-05,2]
[352676684,1739230232199,-1324.12,9.624e-05,2]
[352676685,1739230232208,-150.0,9.736e-05,2]
[352676686,1739230232217,-156.55,9.741e-05,2]
[352676687,1739230232226,-206.6,9.846e-05,2]
[352676688,1739230232236,-1000.0,9.95e-05,2]
[352676689,1739230232250,-18062.75,9.971e-05,2]
[352676690,1739230232259,-500.0,9.992e-05,2]
[352676691,1739230232269,-1059.0,0.00010079,2]
[352676692,1739230232279,-262.31,0.00010137,2]
[352676693,1739230232290,-775.26,0.00010241,2]
[352676694,1739230232300,-775.26,0.00010241,2]
[352676695,1739230232310,-505.55,0.00010241,2]
[352676696,1739230232320,-170.11,0.00010264,2]
[352676697,1739230232330,-155.312037,0.00010435,3]
[352676698,1739230232340,-895.18,0.00010457,2]
[352676699,1739230232350,-420.0,0.00010585,2]
[352676700,1739230232359,-1059.0,0.00010609,2]
[352676701,1739230232370,-514.32296695,0.00010674,2]
[352676702,1739230232379,-348.09990744,0.00010799,2]
[352676703,1739230232389,-500.0,0.00010799,2]
[352676704,1739230232400,-461.66030202,0.00010799,2]
[352676705,1739230232409,-150.0,0.00010799,2]
[352676706,1739230232418,-172078.17838074,0.000108,2]
[352676707,1739230232445,-1809.54469728,0.000108,2]
[352676708,1739230232472,-541.02982009,0.000108,2]
[352676709,1739230232484,-623.36980975,0.000108,2]
[352676710,1739230232496,-7453.55953814,0.000108,2]
[352676711,1739230232508,-787.72537109,0.000108,2]
[352676712,1739230232520,-367.35042861,0.000108,2]
[352676713,1739230232532,-1537.47542561,0.000108,2]
[352676714,1739230232557,-5995.53092008,0.000108,2]
[352676715,1739230232584,-6683.26958659,0.000108,2]
[352676716,1739230232595,-4036.74748476,0.000108,2]
[352676731,1739230237868,-319.2688222,0.00010858,2]
[352676732,1739230238113,-160.48195407,0.00010892,2]
[352676733,1739230238124,-497.62497825,0.000109,2]
[352676734,1739230238134,-1071.8164185,0.000109,2]
[352676735,1739230238143,-757.13974828,0.000109,2]
[352676736,1739230238152,-207.56776491,0.000109,2]
[352676737,1739230238162,-153.95575822,0.000109,2]
[352676738,1739230238171,-418.1719,0.00010932,2]
[352676739,1739230238181,-717.055188,0.00010958,2]
[352676740,1739230238190,-161.660854,0.00010958,2]
[352676741,1739230238200,-567.96,0.00010958,2]
[352676742,1739230238209,-155.177374,0.00010958,2]
[352676743,1739230238219,-778.17,0.00010958,2]
[352676744,1739230238228,-700.2546,0.00010958,2]
[352676745,1739230238237,-716.84,0.00010958,2]
[352676746,1739230238246,-617.52093266,0.00010958,2]
[352676747,1739230238255,-500.0,0.00010958,2]
[352676748,1739230238265,-960.47,0.00010958,2]
[352676749,1739230238274,-500.0,0.00010958,2]
[352676750,1739230238284,-655.04,0.00010958,2]
[352676751,1739230238293,-500.0,0.00010958,2]
[352676752,1739230238302,-500.0,0.00010958,2]
[352676753,1739230238311,-500.0,0.00010958,2]
[352676754,1739230238320,-511.96,0.00010958,2]
[352676755,1739230238329,-806.79,0.00010958,2]
[352676756,1739230238338,-769.49,0.00010958,2]
[352676757,1739230238347,-519.42,0.00010958,2]
[352676758,1739230238357,-500.0,0.00010958,2]
[352676759,1739230238366,-519.09167978,0.00010958,2]
[352676760,1739230238375,-500.0,0.00010958,2]
[352676761,1739230238384,-873.13,0.00010958,2]
[352676762,1739230238393,-500.0,0.00010958,2]
[352676763,1739230238403,-500.0,0.00010958,2]
[352676764,1739230238412,-840.31,0.00010958,2]
[352676765,1739230238421,-926.98,0.00010958,2]
[352676766,1739230238430,-500.0,0.00010958,2]
[352676767,1739230238439,-500.0,0.00010958,2]
[352676768,1739230238448,-500.0,0.00010958,2]
[352676769,1739230238458,-500.0,0.00010958,2]
[352676770,1739230238468,-500.0,0.00010958,2]
[352676771,1739230238477,-824.33,0.00010958,2]
[352676772,1739230238486,-600.53,0.00010958,2]
[352676773,1739230238496,-558.53,0.00010958,2]
[352676774,1739230238505,-500.0,0.00010958,2]
[352676775,1739230238515,-1014.86,0.00010958,2]
[352676776,1739230238525,-758.02183954,0.00010958,2]
[352676777,1739230238557,-340.11816046,0.00010958,2]
[352676778,1739230238566,-500.0,0.00010958,2]
[352676779,1739230238575,-500.0,0.00010958,2]
[352676780,1739230238584,-768.3,0.00010958,2]
[352676781,1739230238593,-514.04535727,0.00010958,2]
[352676782,1739230238602,-500.0,0.00010958,2]
[352676783,1739230238612,-1050.32,0.00010958,2]
[352676784,1739230238621,-901.37,0.00010958,2]
[352676785,1739230238630,-799.4,0.00010958,2]
[352676786,1739230238640,-500.0,0.00010958,2]
[352676787,1739230238649,-536.95,0.00010958,2]
[352676788,1739230238659,-500.0,0.00010958,2]
[352676789,1739230238668,-500.0,0.00010958,2]
[352676790,1739230238678,-1042.84,0.00010958,2]
[352676791,1739230238687,-873.29,0.00010958,2]
[352676792,1739230238697,-500.0,0.00010958,2]
[352676793,1739230238706,-500.0,0.00010958,2]
[352676794,1739230238715,-500.0,0.00010958,2]
[352676795,1739230238725,-500.0,0.00010958,2]
[352676796,1739230238734,-262.06688084,0.00010958,2]
[352676797,1739230238784,-237.93311916,0.00010958,2]
[352676798,1739230238793,-414.79905303,0.00010958,2]
[352676799,1739230238806,-85.20094697,0.00010958,2]
[352676800,1739230238815,-397.43905403,0.00010958,2]
[352676803,1739230240115,-102.56094597,0.00010958,2]
[352676804,1739230240125,-375.36155403,0.00010958,2]
[352676805,1739230240394,-126.60844597,0.00010958,2]
[352676807,1739230240403,-539.55705404,0.00010958,2]
[352676875,1739230243220,-140.50294596,0.00010958,2]
[352676876,1739230243229,-500.0,0.00010958,2]
[352676877,1739230243238,-998.36,0.00010958,2]
[352676878,1739230243247,-500.0,0.00010958,2]
[352676879,1739230243257,-741.48,0.00010958,2]
[352676880,1739230243266,-500.0,0.00010958,2]
[352676881,1739230243276,-1334.69,0.00010958,2]
[352676882,1739230243285,-615.99,0.00010958,2]
[352676883,1739230243294,-500.0,0.00010958,2]
[352676884,1739230243304,-500.0,0.00010958,2]
[352676885,1739230243313,-785.26,0.00010958,2]
[352676886,1739230243322,-598.59,0.00010958,2]
[352676887,1739230243331,-1126.43,0.00010958,2]
[352676888,1739230243340,-500.0,0.00010958,2]
[352676889,1739230243349,-500.0,0.00010958,2]
[352676890,1739230243358,-500.0,0.00010958,2]
[352676891,1739230243368,-969.88,0.00010958,2]
[352676892,1739230243377,-500.0,0.00010958,2]
[352676893,1739230243386,-967.54,0.00010958,2]
[352676894,1739230243395,-500.0,0.00010958,2]
[352676895,1739230243405,-500.0,0.00010958,2]
[352676896,1739230243414,-500.0,0.00010958,2]
[352676897,1739230243423,-632.16,0.00010958,2]
[352676898,1739230243432,-573.3,0.00010958,2]
[352676899,1739230243442,-736.97,0.00010958,2]
[352676900,1739230243451,-926.1,0.00010958,2]
[352676901,1739230243460,-500.0,0.00010958,2]
[352676902,1739230243469,-500.0,0.00010958,2]
[352676903,1739230243478,-1056.39,0.00010958,2]
[352676904,1739230243487,-500.0,0.00010958,2]
[352676906,1739230243496,-500.0,0.00010958,2]
[352676908,1739230243506,-500.0,0.00010958,2]
[352676910,1739230243516,-308.35405014,0.00010958,2]
[352676912,1739230243535,-191.64594986,0.00010958,2]
[352676914,1739230243544,-500.0,0.00010958,2]
[352676916,1739230243553,-500.0,0.00010958,2]
[352676918,1739230243563,-993.22,0.00010958,2]
[352676920,1739230243573,-500.0,0.00010958,2]
[352676922,1739230243583,-1116.77,0.00010958,2]
[352676924,1739230243592,-500.0,0.00010958,2]
[352676926,1739230243601,-500.0,0.00010958,2]
[352676928,1739230243611,-500.0,0.00010958,2]
[352676930,1739230243620,-500.0,0.00010958,2]
[352676931,1739230243630,-678.74,0.00010958,2]
[352676932,1739230243639,-500.0,0.00010958,2]
[352676933,1739230243648,-1011.73,0.00010958,2]
[352676934,1739230243657,-500.0,0.00010958,2]
[352676935,1739230243667,-500.0,0.00010958,2]
[352676936,1739230243677,-515.53,0.00010958,2]
[352676937,1739230243687,-160.81405014,0.00010958,2]
[352676938,1739230243699,-741.52594986,0.00010958,2]
[352676939,1739230243708,-1140.71,0.00010958,2]
[352676940,1739230243717,-821.14,0.00010958,2]
[352676941,1739230243726,-500.0,0.00010958,2]
[352676942,1739230243736,-165.85546454,0.00010958,2]
[352676995,1739230246244,-334.14453546,0.00010958,2]
[352676996,1739230246253,-759.01,0.00010958,2]
[352676997,1739230246263,-5.69146454,0.00010958,2]
[352676998,1739230246275,-666.74853546,0.00010958,2]
[352676999,1739230246284,-1067.78,0.00010958,2]
[352677000,1739230246294,-500.0,0.00010958,2]
[352677001,1739230246304,-519.97,0.00010958,2]
[352677002,1739230246313,-746.89,0.00010958,2]
[352677003,1739230246324,-500.0,0.00010958,2]
[352677004,1739230246334,-1064.88,0.00010958,2]
[352677005,1739230246343,-941.21,0.00010958,2]
[352677006,1739230246353,-500.0,0.00010958,2]
[352677007,1739230246363,-500.0,0.00010958,2]
[352677008,1739230246373,-500.0,0.00010958,2]
[352677009,1739230246382,-852.89,0.00010958,2]
[352677010,1739230246392,-500.0,0.00010958,2]
[352677011,1739230246402,-773.83,0.00010958,2]
[352677012,1739230246411,-500.0,0.00010958,2]
[352677013,1739230246421,-500.0,0.00010958,2]
[352677014,1739230246432,-934.09,0.00010958,2]
[352677015,1739230246441,-719.05,0.00010958,2]
[352677016,1739230246451,-500.0,0.00010958,2]
[352677017,1739230246462,-586.61,0.00010958,2]
[352677018,1739230246471,-1053.97,0.00010958,2]
[352677019,1739230246481,-757.49,0.00010958,2]
[352677020,1739230246490,-679.44,0.00010958,2]
[352677021,1739230246500,-852.33,0.00010958,2]
[352677022,1739230246510,-909.62,0.00010958,2]
[352677023,1739230246520,-500.0,0.00010958,2]
[352677024,1739230246530,-500.0,0.00010958,2]
[352677025,1739230246539,-500.0,0.00010958,2]
[352677026,1739230246549,-500.0,0.00010958,2]
[352677027,1739230246558,-533.93,0.00010958,2]
[352677028,1739230246568,-500.0,0.00010958,2]
[352677029,1739230246577,-500.0,0.00010958,2]
[352677030,1739230246588,-500.0,0.00010958,2]
[352677031,1739230246597,-500.0,0.00010958,2]
[352677032,1739230246607,-947.2,0.00010958,2]
[352677033,1739230246617,-516.22,0.00010958,2]
[352677034,1739230246627,-1220.63,0.00010958,2]
[352677035,1739230246637,-500.0,0.00010958,2]
[352677036,1739230246647,-520.97,0.00010958,2]
[352677037,1739230246656,-1051.55,0.00010958,2]
[352677038,1739230246667,-500.0,0.00010958,2]
[352677039,1739230246677,-500.0,0.00010958,2]
[352677040,1739230246687,-500.0,0.00010958,2]
[352677041,1739230246697,-830.95,0.00010958,2]
[352677042,1739230246707,-500.0,0.00010958,2]
[352677043,1739230246717,-857.15,0.00010958,2]
[352677044,1739230246727,-500.0,0.00010958,2]
[352677045,1739230246736,-728.41,0.00010958,2]
[352677046,1739230246747,-500.0,0.00010958,2]
[352677047,1739230246759,-501.56,0.00010958,2]
[352677048,1739230246771,-500.0,0.00010958,2]
[352677049,1739230246782,-500.0,0.00010958,2]
[352677050,1739230246792,-934.38,0.00010958,2]
[352677051,1739230246803,-707.07,0.00010958,2]
[352677052,1739230246813,-500.0,0.00010958,2]
[352677053,1739230246825,-500.0,0.00010958,2]
[352677054,1739230246835,-500.0,0.00010958,2]
[352677055,1739230246845,-500.0,0.00010958,2]
[352677056,1739230246855,-500.0,0.00010958,2]
[352677057,1739230246865,-727.51,0.00010958,2]
[352677058,1739230246875,-826.77,0.00010958,2]
[352677059,1739230246884,-1031.93,0.00010958,2]
[352677060,1739230246894,-1890.77,0.00010958,2]
[352677061,1739230246903,-500.0,0.00010958,2]
[352677062,1739230246913,-500.0,0.00010958,2]
[352677063,1739230246923,-343.21639552,0.00010958,2]
[352677064,1739230246933,-697.28,0.00010958,2]
[352677065,1739230246942,-153.7888286,0.00010958,2]
[352677066,1739230246951,-500.0,0.00010958,2]
[352677067,1739230246961,-500.0,0.00010958,2]
[352677068,1739230246972,-555.53,0.00010958,2]
[352677069,1739230246982,-807.72,0.00010958,2]
[352677070,1739230246992,-969.74,0.00010958,2]
[352677071,1739230247003,-1894.66,0.00010958,2]
[352677072,1739230247013,-500.0,0.00010958,2]
[352677073,1739230247023,-500.0,0.00010958,2]
[352677074,1739230247033,-500.0,0.00010958,2]
[352677075,1739230247043,-500.0,0.00010958,2]
[352677076,1739230247053,-962.48,0.00010958,2]
[352677077,1739230247062,-1104.61,0.00010958,2]
[352677078,1739230247072,-501.39838325,0.00010958,2]
[352677079,1739230247081,-1501.6,0.00010958,2]
[352677080,1739230247091,-839.33,0.00010958,2]
[352677081,1739230247102,-500.0,0.00010958,2]
[352677082,1739230247112,-299.05880228,0.00010958,2]
[352677083,1739230247122,-953.53,0.00010958,2]
[352677084,1739230247132,-500.0,0.00010958,2]
[352677085,1739230247142,-500.0,0.00010958,2]
[352677086,1739230247151,-500.0,0.00010958,2]
[352677087,1739230247162,-557.66802735,0.00010958,2]
[352677088,1739230247172,-956.27,0.00010958,2]
[352677089,1739230247182,-751.14,0.00010958,2]
[352677090,1739230247191,-1388.0,0.00010958,2]
[352677091,1739230247201,-500.0,0.00010958,2]
[352677092,1739230247211,-759.53,0.00010958,2]
[352677093,1739230247220,-582.47,0.00010958,2]
[352677094,1739230247230,-500.0,0.00010958,2]
[352677095,1739230247240,-1211.28,0.00010958,2]
[352677096,1739230247250,-500.0,0.00010958,2]
[352677097,1739230247259,-542.16,0.00010958,2]
[352677098,1739230247270,-500.0,0.00010958,2]
[352677099,1739230247280,-296.1728567,0.00010958,2]
[352677100,1739230247289,-1167.77,0.00010958,2]
[352677101,1739230247299,-804.3,0.00010958,2]
[352677102,1739230247309,-1140.78,0.00010958,2]
[352677103,1739230247319,-1263.08,0.00010958,2]
[352677104,1739230247329,-500.0,0.00010958,2]
[352677105,1739230247339,-500.0,0.00010958,2]
[352677106,1739230247349,-1891.63817091,0.00010958,2]
[352677107,1739230247674,-298.36182909,0.00010958,2]
[352677108,1739230247685,-788.86,0.00010958,2]
[352677109,1739230247696,-517.18,0.00010958,2]
[352677110,1739230247708,-500.0,0.00010958,2]
[352677111,1739230247718,-500.0,0.00010958,2]
[352677112,1739230247729,-894.02,0.00010958,2]
[352677113,1739230247740,-500.0,0.00010958,2]
[352677114,1739230247750,-1001.63,0.00010958,2]
[352677115,1739230247762,-500.0,0.00010958,2]
[352677116,1739230247775,-749.81,0.00010958,2]
[352677117,1739230247786,-953.25,0.00010958,2]
[352677118,1739230247797,-1111.54,0.00010958,2]
[352677119,1739230247807,-567.42,0.00010958,2]
[352677120,1739230247818,-1817.15,0.00010958,2]
[352677121,1739230247828,-523.49290995,0.00010958,2]
[352677122,1739230247839,-1523.71,0.00010958,2]
[352677123,1739230247851,-877.73,0.00010958,2]
[352677124,1739230247862,-2000.26,0.00010958,2]
[352677125,1739230247872,-1095.03,0.00010958,2]
[352677126,1739230247883,-1046.43,0.00010958,2]
[352677127,1739230247893,-500.0,0.00010958,2]
[352677128,1739230247904,-500.0,0.00010958,2]
[352677129,1739230247914,-700.95,0.00010958,2]
[352677130,1739230247925,-1171.81,0.00010958,2]
[352677131,1739230247936,-1440.47,0.00010958,2]
[352677132,1739230247946,-504.61,0.00010958,2]
[352677133,1739230247955,-500.0,0.00010958,2]
[352677134,1739230247966,-500.0,0.00010958,2]
[352677135,1739230247975,-500.0,0.00010958,2]
[352677136,1739230247986,-1315.51,0.00010958,2]
[352677137,1739230247996,-1366.29305038,0.00010958,2]
[352677138,1739230384203,5573.47985853,8.836e-05,2]
[352677139,1739231011290,-269.24704914,0.00020519,120]
[352677140,1739231011315,-5000.0,0.00020519,120]
[352677141,1739231011340,-4343.88489723,0.00020519,120]
[352677142,1739231011364,-202.48521549,0.00020519,120]
[352677143,1739231011390,-5475.36708836,0.00020519,120]
[352677144,1739231011414,-151.51721389,0.00020519,120]
[352677145,1739231011440,-1483.63744155,0.00020519,120]
[352677146,1739231011465,-217.88965937,0.00020519,120]
[352677147,1739231011490,-553.54171953,0.00020519,120]
[352677148,1739231011514,-152.27050706,0.00020519,120]
[352677149,1739231011544,-245.53508788,0.00020519,120]
[352677150,1739231011569,-595.07827982,0.00020519,120]